bitfinex/quotes_SOLUSD_20260115
["timestamp","ask_amount","ask_price","bid_price","bid_amount"]
[1768453360468,4.69632342,144.41,144.37,0.718828]
[1768453360961,0.66739131,144.4,144.37,0.718828]
[1768453361167,0.66739131,144.4,144.33,36.86998233]
[1768453361168,7.20759344,144.48,144.44,0.718828]
[1768453361370,7.20759344,144.48,144.45,0.718828]
[1768453361534,16.3480522,144.49,144.45,0.718828]
[1768453361941,16.3480522,144.49,144.46,4.74776011]
[1768453362140,16.3480522,144.49,144.46,0.718828]
[1768453362446,16.3480522,144.49,144.45,4.02893211]
[1768453362767,16.3480522,144.49,144.45,0.718828]
[1768453362943,17.01544351,144.49,144.45,4.74776011]
[1768453363346,12.72,144.54,144.46,6.92233144]
[1768453363347,0.66739131,144.53,144.46,6.92233144]
[1768453363555,0.66739131,144.52,144.47,4.02893211]
[1768453363742,0.66739131,144.52,144.46,6.92233144]
[1768453363941,7.01852018,144.54,144.45,6.92269268]
[1768453363942,0.66739131,144.5,144.45,6.92269268]
[1768453364358,0.66739131,144.5,144.46,4.02893211]
[1768453364548,0.66739131,144.5,144.45,6.92269268]
[1768453364948,0.66739131,144.5,144.45,10.95162479]
[1768453365151,0.66739131,144.5,144.45,6.92269268]
[1768453365351,0.66739131,144.49,144.44,6.92322126]
[1768453365547,0.66739131,144.48,144.42,6.92389218]
[1768453365752,0.66739131,144.48,144.43,4.02893211]
[1768453366154,0.66739131,144.48,144.43,10.95264665]
[1768453366367,0.66739131,144.48,144.43,6.92371454]
[1768453366665,0.66739131,144.48,144.43,10.95264665]
[1768453366869,0.66739131,144.48,144.44,4.02893211]
[1768453367655,0.66739131,144.52,144.44,24.23140985]
[1768453367960,0.66739131,144.51,144.47,4.02893211]
[1768453368462,0.66739131,144.51,144.46,4.02893211]
[1768453368761,0.66739131,144.51,144.46,10.95119881]
[1768453369260,0.66739131,144.53,144.47,4.02893211]
[1768453369439,0.66739131,144.53,144.48,4.02893211]
[1768453370070,0.66739131,144.52,144.48,4.02893211]
[1768453370648,0.66739131,144.52,144.46,17.3058286]
[1768453371045,0.71724892,144.51,144.47,4.02893211]
[1768453371368,0.71724892,144.51,144.45,6.92281066]
[1768453371369,0.71724892,144.51,144.46,4.02893211]
[1768453371861,0.71724892,144.51,144.45,6.92281066]
[1768453371862,0.71724892,144.5,144.45,6.92281066]
[1768453372040,0.71724892,144.5,144.46,4.02893211]
[1768453372440,0.71724892,144.5,144.46,10.95110358]
[1768453372864,0.71724892,144.5,144.47,4.02893211]
[1768453373647,0.71724892,144.5,144.47,10.95074137]
[1768453374443,0.71724892,144.5,144.47,6.92180926]
[1768453374763,0.71724892,144.49,144.45,6.92240884]
[1768453374955,0.71724892,144.49,144.45,10.95134095]
[1768453375755,0.71724892,144.48,144.43,10.95270141]
[1768453376672,0.71724892,144.48,144.42,19.54413291]
[1768453376852,0.71724892,144.46,144.42,4.02893211]
[1768453377261,0.71724892,144.46,144.38,12.62]
[1768453377462,0.71724892,144.46,144.42,4.02893211]
[1768453378478,0.71724892,144.46,144.39,24.23889558]
[1768453378767,0.71724892,144.46,144.41,4.02893211]
[1768453379459,0.71724892,144.45,144.41,6.9247282]
[1768453379774,0.71724892,144.44,144.41,6.9247282]
[1768453379947,0.71724892,144.44,144.4,6.92507543]
[1768453380477,0.71724892,144.42,144.39,6.92559249]
[1768453380773,0.71724892,144.4,144.35,4.02893211]
[1768453381468,0.71724892,144.39,144.34,31.13252699]
[1768453381770,0.71724892,144.39,144.36,6.92712662]
[1768453381976,0.71724892,144.39,144.32,17.32226478]
[1768453381977,4.74618103,144.39,144.32,17.32226478]
[1768453382180,0.71724892,144.37,144.33,6.92843306]
[1768453382362,0.71724892,144.36,144.32,6.92892113]
[1768453382801,0.71724892,144.35,144.32,6.92892113]
[1768453382955,0.65724893,144.35,144.31,6.92949113]
[1768453385183,0.65724893,144.35,144.31,10.95842324]
[1768453386177,0.71724892,144.37,144.32,4.02893211]
[1768453386466,0.71724892,144.37,144.31,34.09781134]
[1768453386647,0.71724892,144.36,144.31,38.12674345]
[1768453387258,0.71724892,144.36,144.33,4.02893211]
[1768453387461,29.93102935,144.42,144.33,4.0889321]
[1768453387462,0.71724892,144.38,144.33,4.0889321]
[1768453387661,0.71724892,144.37,144.32,4.0889321]
[1768453387974,0.71724892,144.37,144.32,0.05999999]
[1768453388159,0.71724892,144.37,144.32,4.0889321]
[1768453388471,0.71724892,144.37,144.33,4.02893211]
[1768453388979,0.65724893,144.37,144.34,6.92808646]
[1768453392151,0.65724893,144.37,144.33,6.92843207]
[1768453392571,0.65724893,144.37,144.33,10.95736418]
[1768453393174,0.65724893,144.37,144.33,11.07736416]
[1768453393378,6.92476797,144.41,144.33,11.07736416]
[1768453393673,0.71724892,144.39,144.34,4.02893211]
[1768453393980,0.71724892,144.39,144.35,4.02893211]
[1768453394358,0.71724892,144.39,144.35,10.95617878]
[1768453395386,0.71724892,144.39,144.35,6.92724667]
[1768453397080,0.71724892,144.37,144.34,6.92799938]
[1768453397379,4.02893211,144.38,144.34,6.92799938]
[1768453397557,12.62,144.42,144.32,12.62]
[1768453397558,4.02893211,144.37,144.32,12.62]
[1768453397754,4.02893211,144.37,144.32,0.71362798]
[1768453397974,6.92569787,144.39,144.32,0.71362798]
[1768453398174,4.02893211,144.38,144.32,0.71362798]
[1768453398560,6.92569787,144.39,144.33,6.92822019]
[1768453398771,4.02893211,144.38,144.33,6.92822019]
[1768453399363,0.71724892,144.37,144.33,6.92822019]
[1768453399877,0.71724892,144.38,144.34,0.71362798]
[1768453400068,0.71724892,144.38,144.34,7.64167392]
[1768453400268,0.71724892,144.38,144.34,6.92804594]
[1768453402066,0.71724892,144.38,144.33,7.64203944]
[1768453402386,0.70342634,144.37,144.33,7.64203944]
[1768453402782,0.70342634,144.37,144.33,6.92841146]
[1768453403292,3.28062812,144.37,144.33,6.92841146]
[1768453403472,0.71212778,144.36,144.33,6.92841146]
[1768453404681,0.71212778,144.35,144.31,6.92943149]
[1768453404986,3.22932957,144.35,144.31,7.63119047]
[1768453405187,2.57720178,144.33,144.29,53.8164507]
[1768453406768,0.71212778,144.32,144.29,53.8164507]
[1768453411181,0.71212778,144.31,144.29,53.8164507]
[1768453411898,0.71212778,144.33,144.29,61.44863114]
[1768453413579,0.71212778,144.32,144.29,53.8164507]
[1768453414400,0.71212778,144.31,144.29,53.8164507]
[1768453415683,0.71212778,144.3,144.29,53.8164507]
[1768453416000,3.28932956,144.32,144.29,53.8164507]
[1768453416175,0.71212778,144.31,144.29,53.8164507]
[1768453424186,3.28932956,144.32,144.29,53.8164507]
[1768453425007,0.71212778,144.31,144.29,53.8164507]
[1768453425208,0.71212778,144.3,144.29,53.8164507]
[1768453425589,3.28932956,144.3,144.26,7.6335974]
[1768453425997,0.71212778,144.29,144.24,5.54408856]
[1768453426199,0.71212778,144.29,144.18,35.68303644]
[1768453426200,0.47371059,144.24,144.2,0.70175898]
[1768453426605,0.47371059,144.24,144.2,7.63639025]
[1768453426890,3.05091237,144.24,144.2,7.63639025]
[1768453427291,0.47371059,144.24,144.21,0.70175898]
[1768453427508,0.47371059,144.24,144.2,7.63639025]
[1768453427703,0.47371059,144.24,144.2,0.70175898]
[1768453427704,3.05091237,144.24,144.2,0.70175898]
[1768453428390,3.28932956,144.22,144.18,0.90175898]
[1768453429407,15.92932956,144.22,144.18,0.90175898]
[1768453430620,22.86319081,144.22,144.18,0.90175898]
[1768453430995,15.92932956,144.22,144.18,0.90175898]
[1768453431324,0.099,144.16,144.13,0.2]
[1768453431510,6.9362558,144.17,144.1,0.86423808]
[1768453431511,3.15530129,144.14,144.1,0.86423808]
[1768453431820,2.57720178,144.13,144.1,0.86423808]
[1768453432017,12.64,144.14,144.11,17.01229028]
[1768453432223,15.21720178,144.15,144.11,17.01229028]
[1768453433129,2.57720178,144.14,144.11,17.01229028]
[1768453436423,19.57731142,144.15,144.11,17.01229028]
[1768453437123,6.93731142,144.15,144.11,19.58949206]
[1768453437301,15.21720178,144.17,144.12,0.66423808]
[1768453437507,0.6829389,144.16,144.11,16.24549205]
[1768453437909,0.6829389,144.16,144.11,13.66829027]
[1768453438319,0.6829389,144.16,144.11,16.24549205]
[1768453438706,0.65759569,144.15,144.11,16.24549205]
[1768453439633,0.65759569,144.15,144.11,14.33252835]
[1768453439932,0.65759569,144.15,144.11,16.90973013]
[1768453440616,36.98174057,144.17,144.15,0.66423808]
[1768453441024,36.98174057,144.17,144.14,3.24143986]
[1768453441332,36.98174057,144.17,144.14,0.66423808]
[1768453441532,36.98174057,144.17,144.14,3.24143986]
[1768453441931,44.57590511,144.17,144.13,3.24143986]
[1768453442834,44.57590511,144.17,144.14,2.57720178]
[1768453443034,36.98174057,144.17,144.15,2.57720178]
[1768453443735,0.65784659,144.16,144.12,3.24143986]
[1768453444511,36.98174057,144.17,144.14,0.66423808]
[1768453444717,36.98174057,144.17,144.16,2.57720178]
[1768453445122,6.93495903,144.2,144.16,3.24143986]
[1768453445324,0.6829389,144.22,144.19,2.57720178]
[1768453445510,7.61683415,144.22,144.18,0.66423808]
[1768453445711,7.61683415,144.22,144.18,3.24143986]
[1768453446318,7.61683415,144.22,144.19,2.57720178]
[1768453446526,7.61683415,144.22,144.2,2.57720178]
[1768453446741,0.6829389,144.24,144.21,2.57720178]
[1768453446910,24.26523381,144.24,144.12,5.34408856]
[1768453447115,26.84243559,144.24,144.18,2.57720178]
[1768453447521,0.5829389,144.23,144.18,2.57720178]
[1768453448024,7.03285106,144.22,144.18,2.57720178]
[1768453449520,7.03285106,144.22,144.19,2.57720178]
[1768453449736,6.93385106,144.22,144.18,0.66423808]
[1768453449943,6.93385106,144.22,144.19,2.57720178]
[1768453450320,6.93385106,144.22,144.2,3.24143986]
[1768453450532,0.5829389,144.25,144.2,3.24143986]
[1768453451634,0.099,144.24,144.2,3.24143986]
[1768453452321,0.099,144.24,144.2,0.66423808]
[1768453452645,0.099,144.24,144.19,0.66423808]
[1768453452849,0.099,144.24,144.2,2.57720178]
[1768453454653,7.51146982,144.23,144.19,3.24143986]
[1768453455640,6.93337031,144.23,144.2,3.24143986]
[1768453458242,6.93337031,144.23,144.21,2.57720178]
[1768453458642,7.03140901,144.25,144.21,3.24143986]
[1768453458937,7.03140901,144.25,144.22,2.57720178]
[1768453458938,24.36243154,144.25,144.22,2.57720178]
[1768453459460,0.57335643,144.22,144.16,0.66423808]
[1768453459757,0.10848664,144.21,144.17,2.57720178]
[1768453459929,0.10848664,144.21,144.16,0.66423808]
[1768453460134,0.56870773,144.2,144.16,3.24143986]
[1768453460454,0.56870773,144.2,144.15,2.57720178]
[1768453460758,0.11308885,144.19,144.15,2.57720178]
[1768453460952,6.93577472,144.18,144.15,2.57720178]
[1768453461145,6.93541574,144.19,144.16,3.28903098]
[1768453461351,6.93541574,144.19,144.17,3.28903098]
[1768453461835,17.3351037,144.22,144.17,3.28903098]
[1768453462046,6.93433187,144.21,144.16,0.7118292]
[1768453462350,6.93433187,144.21,144.17,3.26582795]
[1768453462963,7.51727077,144.21,144.17,3.26582795]
[1768453463339,0.099,144.2,144.15,0.68862617]
[1768453463538,0.099,144.2,144.16,2.57720178]
[1768453464356,0.099,144.2,144.15,0.68862617]
[1768453464558,5.13671813,144.19,144.15,3.26582795]
[1768453464764,5.13671813,144.18,144.15,3.26582795]
[1768453464957,6.9352937,144.19,144.16,2.57720178]
[1768453465139,5.13672334,144.18,144.16,2.57720178]
[1768453465460,7.51339321,144.19,144.16,4.03717345]
[1768453465642,5.13938031,144.18,144.16,4.03717345]
[1768453465845,7.51339321,144.19,144.16,4.03717345]
[1768453466043,5.13938304,144.18,144.16,4.03717345]
[1768453466362,5.13938304,144.17,144.16,4.00717345]
[1768453467541,12.07563884,144.17,144.15,0.68862617]
[1768453467755,5.14694655,144.16,144.15,4.72579962]
[1768453467956,6.93591947,144.18,144.15,4.72579962]
[1768453468344,6.93591947,144.18,144.16,4.03717345]
[1768453469350,6.93591947,144.18,144.16,4.72579962]
[1768453469968,6.9352937,144.19,144.16,4.72579962]
[1768453470467,6.9352937,144.19,144.16,0.68862617]
[1768453470669,7.51727077,144.21,144.17,4.72579962]
[1768453470867,7.51727077,144.21,144.17,4.69579962]
[1768453471369,0.6661677,144.2,144.17,1.23135393]
[1768453472070,7.60101652,144.2,144.17,1.23135393]
[1768453472669,6.93484882,144.2,144.14,6.9376536]
[1768453472870,6.93445338,144.21,144.18,4.03717345]
[1768453473176,6.93445338,144.21,144.19,4.03717345]
[1768453473679,6.93445338,144.21,144.18,4.72579962]
[1768453473857,6.93445338,144.21,144.19,0.68862617]
[1768453474051,6.93445338,144.21,144.19,4.72579962]
[1768453474450,6.93445338,144.21,144.19,4.03717345]
[1768453475165,6.93445338,144.21,144.18,4.72579962]
[1768453476379,6.93445338,144.21,144.18,4.69579962]
[1768453476576,6.93445338,144.21,144.18,0.65862617]
[1768453479081,0.6661677,144.24,144.2,4.72579962]
[1768453479370,0.6661677,144.24,144.21,0.68862617]
[1768453479964,5.17361004,144.23,144.22,0.68862617]
[1768453480279,0.6661677,144.26,144.22,4.72579962]
[1768453480574,0.6661677,144.26,144.22,0.68862617]
[1768453480762,7.59812152,144.26,144.24,4.03717345]
[1768453482053,7.59713526,144.28,144.24,4.03717345]
[1768453482258,7.59668155,144.29,144.27,4.03717345]
[1768453482478,7.02964598,144.31,144.27,4.72579962]
[1768453482982,0.6661677,144.3,144.27,4.03717345]
[1768453484077,7.59637834,144.3,144.27,4.03717345]
[1768453484671,7.59637834,144.3,144.26,4.72579962]
[1768453484888,0.6661677,144.29,144.26,4.03717345]
[1768453485059,0.6661677,144.29,144.24,13.32862617]
[1768453485261,0.6661677,144.29,144.25,4.03717345]
[1768453485587,7.59686061,144.29,144.25,4.03717345]
[1768453485787,0.6661677,144.28,144.24,4.03717345]
[1768453485997,0.6661677,144.28,144.25,4.03717345]
[1768453487202,0.6661677,144.28,144.24,0.68862617]
[1768453487369,0.6661677,144.28,144.25,4.03717345]
[1768453488272,7.59719861,144.28,144.24,4.72579962]
[1768453488579,7.09719861,144.28,144.24,4.72579962]
[1768453489162,7.09719861,144.28,144.25,4.03717345]
[1768453489385,7.09719861,144.28,144.23,4.03717345]
[1768453489386,10.96820436,144.28,144.23,4.03717345]
[1768453489557,28.29562326,144.28,144.23,4.03717345]
[1768453490686,0.70748174,144.27,144.23,4.03717345]
[1768453491786,7.63913534,144.27,144.23,4.71454665]
[1768453493691,7.63948907,144.26,144.23,4.03717345]
[1768453494196,0.70748174,144.26,144.23,4.03717345]
[1768453495989,7.63943919,144.26,144.23,4.03717345]
[1768453497459,0.70748174,144.25,144.23,4.03717345]
[1768453497769,0.70748174,144.25,144.18,17.33895191]
[1768453497770,0.70748174,144.25,144.21,4.71454665]
[1768453498384,7.63990898,144.25,144.22,4.03717345]
[1768453498580,0.70748174,144.26,144.22,4.71454665]
[1768453500671,20.27863787,144.28,144.24,0.6773732]
[1768453500876,20.27863787,144.28,144.25,0.6773732]
[1768453501079,5.86109553,144.27,144.23,4.71454665]
[1768453501267,0.70748174,144.27,144.23,4.71454665]
[1768453501472,0.70748174,144.27,144.23,0.6773732]
[1768453501685,0.70748174,144.27,144.22,4.71454665]
[1768453501974,0.70748174,144.27,144.23,4.71454665]
[1768453502574,0.70748174,144.27,144.24,0.6773732]
[1768453502791,19.57115613,144.28,144.24,0.6773732]
[1768453503098,20.27863787,144.28,144.24,0.6773732]
[1768453503399,0.70748174,144.27,144.24,0.6773732]
[1768453506789,7.63894577,144.27,144.23,4.03717345]
[1768453506980,7.63894577,144.27,144.21,20.25162021]
[1768453506981,0.70748174,144.26,144.21,20.25162021]
[1768453507186,0.70748174,144.26,144.22,4.03717345]
[1768453507492,0.70748174,144.26,144.22,4.71454665]
[1768453508588,0.70748174,144.26,144.23,4.03717345]
[1768453508802,0.70748174,144.26,144.22,4.71454665]
[1768453511894,5.15634113,144.25,144.22,4.71454665]
[1768453512092,0.70748174,144.26,144.22,4.71454665]
[1768453513009,5.15765811,144.25,144.22,4.71454665]
[1768453513316,7.63944756,144.26,144.22,4.71454665]
[1768453513492,5.1592593,144.25,144.22,4.71454665]
[1768453513814,0.70748174,144.25,144.22,4.71454665]
[1768453515613,0.70748174,144.24,144.19,0.6773732]
[1768453515815,6.93247503,144.25,144.2,4.03717345]
[1768453515816,5.87033509,144.23,144.2,4.03717345]
[1768453515992,0.70748174,144.23,144.21,4.03717345]
[1768453516192,0.70748174,144.24,144.21,4.03717345]
[1768453516487,5.16474924,144.23,144.21,4.03717345]
[1768453516691,0.70748174,144.24,144.21,4.03717345]
[1768453516891,5.16493693,144.23,144.21,4.03717345]
[1768453517087,0.70748174,144.24,144.21,4.71454665]
[1768453517298,5.16638073,144.23,144.21,4.71454665]
[1768453517515,0.70748174,144.24,144.21,4.71454665]
[1768453517706,5.16655867,144.23,144.21,4.71454665]
[1768453517912,0.70748174,144.24,144.21,4.71454665]
[1768453518098,16.67717345,144.27,144.24,0.6773732]
[1768453518099,0.70748174,144.27,144.24,0.6773732]
[1768453518297,7.6384493,144.28,144.24,0.6773732]
[1768453518515,0.70748174,144.27,144.21,6.93432384]
[1768453518691,0.70748174,144.27,144.23,4.03717345]
[1768453518892,0.70748174,144.27,144.23,4.71454665]
[1768453519508,7.63894786,144.27,144.23,4.71454665]
[1768453520018,6.93146612,144.27,144.24,0.6773732]
[1768453520619,7.65231857,144.27,144.23,0.6676697]
[1768453520800,0.72085245,144.26,144.23,4.70484315]
[1768453521820,7.65231857,144.27,144.23,4.70484315]
[1768453522007,0.72085245,144.27,144.24,4.70484315]
[1768453522503,0.72085245,144.27,144.24,0.6676697]
[1768453522708,7.65234124,144.27,144.24,0.6676697]
[1768453523107,0.71728327,144.28,144.24,4.70484315]
[1768453523306,13.35728327,144.29,144.25,0.69004442]
[1768453523808,13.35728327,144.29,144.25,4.72721787]
[1768453524617,20.28788824,144.29,144.25,4.72721787]
[1768453526426,0.81728327,144.31,144.27,0.69004442]
[1768453526631,0.81728327,144.31,144.27,4.69721787]
[1768453527129,0.81728327,144.31,144.27,0.66004442]
[1768453527510,0.71728327,144.3,144.27,0.66004442]
[1768453527729,0.71728327,144.3,144.27,0.63004442]
[1768453528812,7.64730322,144.3,144.27,0.63004442]
[1768453529422,7.64730322,144.3,144.26,2.57974081]
[1768453529423,0.71728327,144.29,144.26,2.57974081]
[1768453529622,0.71728327,144.29,144.25,3.26978523]
[1768453530021,0.71728327,144.29,144.26,0.69004442]
[1768453530331,5.17986716,144.28,144.26,3.26978523]
[1768453530631,0.71728327,144.3,144.26,3.26978523]
[1768453530632,5.17986716,144.27,144.26,3.26978523]
[1768453531029,0.71728327,144.3,144.26,3.26978523]
[1768453531233,5.17936543,144.29,144.26,3.26978523]
[1768453531533,5.17936543,144.28,144.26,3.26978523]
[1768453531712,5.17936543,144.27,144.26,3.26978523]
[1768453532531,7.64738456,144.3,144.26,3.26978523]
[1768453532722,5.17850724,144.29,144.26,3.26978523]
[1768453532921,5.17850724,144.28,144.26,3.26978523]
[1768453533125,7.64738456,144.3,144.26,3.26978523]
[1768453533334,5.17838099,144.29,144.27,0.69004442]
[1768453533523,5.17838099,144.28,144.27,0.69004442]
[1768453533923,5.17838099,144.28,144.27,0.66004442]
[1768453534121,5.17838099,144.28,144.26,2.57974081]
[1768453534327,5.17779144,144.27,144.26,2.57974081]
[1768453534538,5.17779144,144.27,144.24,6.93278468]
[1768453534733,0.71728327,144.29,144.25,2.57974081]
[1768453534923,5.17766273,144.28,144.25,2.57974081]
[1768453535122,5.17766273,144.27,144.25,2.57974081]
[1768453535324,0.71728327,144.29,144.25,2.57974081]
[1768453535638,5.17731127,144.28,144.26,2.57974081]
[1768453535825,5.17731127,144.27,144.24,6.93278468]
[1768453536017,0.71728327,144.29,144.26,3.26978523]
[1768453536214,5.17731002,144.28,144.26,3.26978523]
[1768453536434,5.17731002,144.27,144.26,3.26978523]
[1768453537436,5.17731002,144.27,144.26,0.69004442]
[1768453537739,5.17731002,144.27,144.25,3.26978523]
[1768453537941,0.71728327,144.29,144.25,3.26978523]
[1768453538119,5.17666363,144.28,144.25,3.26978523]
[1768453538326,5.17666363,144.27,144.25,3.26978523]
[1768453538527,0.71728327,144.29,144.25,3.26978523]
[1768453538727,5.17637428,144.28,144.25,3.26978523]
[1768453539026,5.17637428,144.27,144.26,0.69004442]
[1768453540335,5.17637428,144.27,144.26,3.26978523]
[1768453540638,5.17637428,144.27,144.26,0.69004442]
[1768453541535,5.17637428,144.27,144.26,3.26978523]
[1768453542921,7.64738456,144.3,144.27,0.69004442]
[1768453543733,7.64738456,144.3,144.27,3.26978523]
[1768453543937,7.64738456,144.3,144.27,0.69004442]
[1768453545536,7.64738456,144.3,144.26,3.26978523]
[1768453546042,7.64738456,144.3,144.26,0.69004442]
[1768453546243,0.71728327,144.29,144.26,3.26978523]
[1768453546448,0.1,144.31,144.27,3.26978523]
[1768453546626,0.81728327,144.31,144.27,3.26978523]
[1768453546826,0.81728327,144.31,144.28,3.26978523]
[1768453547047,0.81728327,144.31,144.28,2.57974081]
[1768453547341,0.81728327,144.31,144.27,3.26978523]
[1768453547543,0.71728327,144.3,144.27,3.26978523]
[1768453548933,0.71728327,144.3,144.27,0.69004442]
[1768453549434,0.71728327,144.3,144.27,3.26978523]
[1768453550744,0.71728327,144.3,144.25,0.69573679]
[1768453550947,0.67256219,144.29,144.25,0.69573679]
[1768453551249,0.67256219,144.29,144.26,3.2754776]
[1768453552334,0.67256219,144.3,144.26,3.2754776]
[1768453553537,0.67256219,144.3,144.26,0.69573679]
[1768453553736,0.67256219,144.3,144.26,3.2754776]
[1768453554951,5.84563623,144.29,144.26,3.2754776]
[1768453555156,0.67256219,144.29,144.26,3.2754776]
[1768453555747,0.67256219,144.29,144.26,0.69573679]
[1768453556051,0.67256219,144.29,144.26,3.2754776]
[1768453558155,0.67256219,144.29,144.26,0.69573679]
[1768453558357,0.67256219,144.29,144.26,3.2754776]
[1768453559034,7.02959063,144.31,144.28,3.2754776]
[1768453559239,0.1,144.31,144.3,2.57974081]
[1768453559455,0.67256219,144.33,144.3,2.57974081]
[1768453560352,0.67256219,144.33,144.27,19.57126227]
[1768453560353,0.67256219,144.32,144.27,19.57126227]
[1768453560653,0.67256219,144.32,144.28,2.57974081]
[1768453560837,0.67256219,144.3,144.26,12.64]
[1768453561038,0.67256219,144.3,144.25,2.57974081]
[1768453561553,0.67256219,144.29,144.24,2.57974081]
[1768453561860,0.67256219,144.28,144.25,2.57974081]
[1768453562157,6.93014707,144.3,144.25,3.252303]
[1768453562158,6.10270926,144.3,144.25,3.252303]
[1768453563963,0.67256219,144.29,144.25,3.252303]
[1768453564293,7.60220152,144.31,144.28,2.57974081]
[1768453564458,0.67256219,144.31,144.28,3.252303]
[1768453564757,7.60216661,144.31,144.28,3.252303]
[1768453565754,20.24176028,144.32,144.28,3.252303]
[1768453565956,7.60176028,144.32,144.28,3.252303]
[1768453567759,0.67256219,144.31,144.28,3.252303]
[1768453568351,0.67256219,144.31,144.28,2.57974081]
[1768453568570,0.67256219,144.31,144.27,2.57974081]
[1768453568865,0.67256219,144.31,144.27,3.252303]
[1768453569458,0.67256219,144.31,144.27,2.57974081]
[1768453570053,0.67256219,144.31,144.25,2.57974081]
[1768453570054,0.67256219,144.3,144.25,2.57974081]
[1768453570349,0.67256219,144.3,144.26,2.57974081]
[1768453570546,0.67256219,144.3,144.25,0.67256219]
[1768453570754,0.67256219,144.3,144.26,2.57974081]
[1768453571264,5.85556822,144.29,144.26,2.57974081]
[1768453571568,5.85556822,144.28,144.25,2.57974081]
[1768453571792,0.67256219,144.28,144.25,0.67256219]
[1768453571974,5.18308693,144.27,144.25,3.252303]
[1768453572186,0.67256219,144.28,144.25,3.252303]
[1768453572346,5.18327231,144.27,144.25,3.252303]
[1768453572548,0.67256219,144.28,144.25,3.252303]
[1768453572750,5.18339151,144.27,144.25,3.252303]
[1768453572967,0.67256219,144.28,144.25,3.252303]
[1768453573166,5.18339151,144.27,144.25,3.252303]
[1768453573359,0.67256219,144.28,144.25,3.252303]
[1768453573561,5.18343441,144.27,144.25,3.252303]
[1768453573765,0.67256219,144.28,144.25,3.252303]
[1768453573975,5.18343567,144.27,144.25,0.67256219]
[1768453574151,0.67256219,144.28,144.25,3.252303]
[1768453574352,5.18345883,144.27,144.25,3.252303]
[1768453574552,0.67256219,144.28,144.25,3.252303]
[1768453574769,5.18336737,144.27,144.25,3.252303]
[1768453574959,0.67256219,144.28,144.25,3.252303]
[1768453575161,5.18336737,144.27,144.25,3.252303]
[1768453575484,0.67256219,144.28,144.25,3.252303]
[1768453575657,5.18347332,144.27,144.25,3.252303]
[1768453575857,0.67256219,144.28,144.25,3.252303]
[1768453576481,5.18338595,144.27,144.25,0.67256219]
[1768453576682,0.67256219,144.29,144.26,2.57974081]
[1768453576862,5.18338721,144.28,144.27,2.57974081]
[1768453577061,5.18338721,144.28,144.26,3.252303]
[1768453577283,0.67256219,144.29,144.26,3.252303]
[1768453577482,5.18332306,144.28,144.26,3.252303]
[1768453577653,0.67256219,144.29,144.26,3.252303]
[1768453577856,5.18332181,144.28,144.26,0.67256219]
[1768453578074,0.67256219,144.29,144.26,3.252303]
[1768453578274,5.18332306,144.28,144.26,3.252303]
[1768453578476,0.67256219,144.29,144.26,3.252303]
[1768453578681,5.18332033,144.28,144.26,3.252303]
[1768453578870,0.67256219,144.29,144.26,0.67256219]
[1768453579070,5.18331907,144.28,144.26,10.18415906]
[1768453579290,0.67256219,144.3,144.27,3.252303]
[1768453579482,5.18314997,144.29,144.27,3.252303]
[1768453579667,5.18314997,144.28,144.27,0.67256219]
[1768453579985,0.67256219,144.3,144.27,3.252303]
[1768453580901,0.67256219,144.3,144.24,12.64]
[1768453580902,0.67256219,144.3,144.25,9.5120056]
[1768453581061,0.67256219,144.3,144.25,22.82456779]
[1768453582500,0.67256219,144.3,144.25,20.24482698]
[1768453582670,0.67256219,144.3,144.24,3.24355945]
[1768453582671,0.66271017,144.28,144.24,3.24355945]
[1768453583483,0.66271017,144.28,144.25,2.57974081]
[1768453583766,0.66271017,144.28,144.25,3.24355945]
[1768453585769,0.66271017,144.28,144.24,7.59659065]
[1768453585976,0.66271017,144.28,144.25,2.57974081]
[1768453587393,0.66271017,144.28,144.24,7.59659065]
[1768453587609,0.66271017,144.28,144.25,2.57974081]
[1768453589104,0.66271017,144.3,144.26,3.24355945]
[1768453589321,0.66271017,144.3,144.26,4.69445648]
[1768453589605,0.66271017,144.29,144.26,4.03063784]
[1768453590813,0.66271017,144.29,144.25,11.62681329]
[1768453591421,0.66271017,144.29,144.25,4.69445648]
[1768453591610,0.66271017,144.29,144.24,11.62722986]
[1768453591820,5.84708366,144.28,144.24,11.62722986]
[1768453591995,0.66271017,144.28,144.25,0.66381864]
[1768453592835,0.66271017,144.28,144.25,11.62683893]
[1768453597528,0.66271017,144.28,144.25,4.69445648]
[1768453599619,0.66271017,144.28,144.24,10.96336545]
[1768453599921,0.66271017,144.28,144.24,11.62718409]
[1768453601224,0.66271017,144.28,144.25,0.66381864]
[1768453601626,0.66271017,144.27,144.23,7.59710133]
[1768453601819,0.66271017,144.27,144.24,4.03063784]
[1768453604516,0.66271017,144.27,144.24,4.69445648]
[1768453604826,0.66271017,144.27,144.22,0.66381864]
[1768453605128,0.66271017,144.25,144.22,0.66381864]
[1768453606132,0.66271017,144.25,144.21,4.03063784]
[1768453606321,0.66271017,144.25,144.2,4.03063784]
[1768453606511,0.66271017,144.25,144.21,0.66381864]
[1768453607211,0.66271017,144.25,144.21,4.69445648]
[1768453607908,0.66271017,144.25,144.21,0.66381864]